bitfinex/quotes_ETHUSD_20220120
["timestamp","ask_amount","ask_price","bid_price","bid_amount"]
[1642668874347,1.13762907,3130.1,3130.0,2.79513969]
[1642668874547,1.13762907,3130.1,3129.8,5.41321885]
[1642668874748,1.14445016,3130.1,3129.8,5.41321885]
[1642668874948,1.14445016,3130.1,3129.8,2.51804629]
[1642668875548,1.14445016,3130.1,3129.8,5.31091139]
[1642668875749,0.30682109,3130.1,3129.8,5.31091139]
[1642668875988,0.30682109,3130.1,3129.8,5.33084569]
[1642668876190,0.30682109,3130.1,3129.8,2.51804629]
[1642668876389,0.30682109,3130.1,3129.8,5.32753843]
[1642668877793,0.30682109,3130.1,3129.8,2.51804629]
[1642668881043,0.30682109,3130.1,3129.8,5.34134694]
[1642668881345,0.30682109,3130.1,3129.8,5.3415198]
[1642668881742,0.30682109,3130.1,3129.8,2.51804629]
[1642668883791,0.30682109,3130.1,3129.8,2.21804629]
[1642668884594,0.40254986,3130.1,3129.8,2.21804629]
[1642668884796,0.40254986,3130.1,3129.8,5.06528845]
[1642668884996,0.40254986,3130.1,3129.8,2.21804629]
[1642668885195,0.40254986,3130.1,3129.8,5.026806]
[1642668885597,0.53042686,3130.1,3129.8,5.026806]
[1642668885796,0.53042686,3130.1,3129.8,5.32381109]
[1642668886197,0.53042686,3130.1,3129.8,2.51804629]
[1642668886597,0.53042686,3130.1,3129.8,5.3200141]
[1642668886797,0.53042686,3130.1,3129.8,2.51804629]
[1642668886996,0.40254986,3130.1,3129.8,2.51804629]
[1642668889439,0.53042686,3130.1,3129.8,1.71908629]
[1642668889639,0.30682109,3130.1,3129.8,0.3]
[1642668890043,1.90514799,3130.1,3129.6,0.3]
[1642668890244,2.70429799,3130.1,3129.6,0.3]
[1642668890442,0.3,3130.0,3129.6,0.3]
[1642668890889,0.3,3129.8,3129.6,0.3]
[1642668891389,0.00454739,3129.7,3129.6,0.3]
[1642668893294,0.00454739,3129.7,3129.6,3.02162701]
[1642668894944,0.00454739,3129.7,3129.6,2.72162701]
[1642668895844,0.00454739,3129.7,3129.6,3.02162701]
[1642668897646,0.00454739,3129.7,3129.6,3.02059881]
[1642668898047,0.00354541,3129.7,3129.6,3.02059881]
[1642668900293,0.00354541,3129.7,3129.6,2.72162701]
[1642668900497,2.4570599,3129.7,3129.3,2.72162701]
[1642668900697,1.7265324,3129.6,3129.4,2.72162701]
[1642668900895,1.72950939,3129.6,3129.5,2.72162701]
[1642668901093,0.00240857,3129.5,3128.9,0.79933]
[1642668901295,1.39316,3129.4,3128.6,3.79759899]
[1642668901495,1.73103455,3129.4,3128.6,2.19896899]
[1642668901792,1.73103455,3129.4,3128.7,0.00213882]
[1642668901793,1.00127172,3129.3,3128.7,0.00213882]
[1642668901993,2.1927213,3129.2,3128.7,0.00213882]
[1642668902246,0.63276006,3129.2,3128.7,0.00213882]
[1642668902444,0.5938,3129.2,3128.7,1.62729804]
[1642668902646,0.5938,3129.2,3128.7,1.92729804]
[1642668902844,0.5938,3129.2,3128.8,0.0015704]
[1642668903445,0.5938,3129.2,3128.8,1.45196334]
[1642668903844,0.5938,3129.2,3128.9,0.00100197]
[1642668904049,0.5938,3129.2,3128.9,0.80032197]
[1642668905051,0.466,3129.2,3128.9,1.10032197]
[1642668905886,0.45565141,3129.2,3128.9,1.10032197]
[1642668906688,0.30127172,3129.3,3128.9,1.10032197]
[1642668906887,0.00127172,3129.3,3128.9,1.10032197]
[1642668907087,0.00127172,3129.3,3128.9,2.72548119]
[1642668907488,0.00127172,3129.3,3128.9,2.42548119]
[1642668908292,0.00127172,3129.3,3128.9,2.72548119]
[1642668908990,0.00127172,3129.3,3129.0,1.62515922]
[1642668913243,0.00127172,3129.3,3129.1,2.83066485]
[1642668913493,0.00127172,3129.3,3129.0,1.62515922]
[1642668914495,0.00127172,3129.3,3129.2,4.22515922]
[1642668914693,0.00127172,3129.3,3129.2,7.41240706]
[1642668914894,0.00127172,3129.3,3129.2,6.08724784]
[1642668915095,0.00127172,3129.3,3129.2,2.9]
[1642668916098,0.00127172,3129.3,3129.2,5.62144859]
[1642668917153,0.00127172,3129.3,3129.2,2.72144859]
[1642668921302,0.00127172,3129.3,3129.2,5.5182319]
[1642668921498,0.00127172,3129.3,3129.2,4.34660781]
[1642668922101,0.00127172,3129.3,3129.2,2.72144859]
[1642668924303,0.00127172,3129.3,3129.2,2.7111207]
[1642668924503,0.00127172,3129.3,3129.2,4.33627992]
[1642668925367,0.00127172,3129.3,3129.2,2.7111207]
[1642668926469,0.00127172,3129.3,3129.2,4.33627992]
[1642668926867,0.00127172,3129.3,3129.2,4.63627992]
[1642668927867,0.00127172,3129.3,3129.2,3.0111207]
[1642668928267,0.00127172,3129.3,3129.2,4.6246334]
[1642668928892,0.00127172,3129.3,3129.2,4.3246334]
[1642668929094,0.00127172,3129.3,3129.2,1.6135127]
[1642668929698,0.00127172,3129.3,3129.1,2.43789597]
[1642668930297,0.00127172,3129.3,3129.0,7.23900521]
[1642668930499,0.00127172,3129.3,3129.1,2.43789597]
[1642668930697,0.00127172,3129.3,3129.0,7.23900521]
[1642668930897,0.00127172,3129.3,3129.2,1.61186662]
[1642668931298,0.00127172,3129.3,3129.1,1.61186662]
[1642668931705,0.127896,3129.4,3129.1,1.61186662]
[1642668931901,0.127896,3129.4,3129.2,1.61186662]
[1642668932549,0.127896,3129.4,3129.2,1.91186662]
[1642668934552,0.127896,3129.4,3129.3,1.61186662]
[1642668934953,0.12973614,3129.4,3129.2,1.61186662]
[1642668935353,0.00127172,3129.3,3129.2,1.61186662]
[1642668935554,0.00127172,3129.3,3129.0,6.85678498]
[1642668935995,0.00127172,3129.3,3129.0,7.15678498]
[1642668936201,0.00025329,3129.3,3129.0,4.33618597]
[1642668936598,0.00025329,3129.3,3129.1,0.00088356]
[1642668936800,0.00025329,3129.3,3129.1,6.12930554]
[1642668937004,0.00025329,3129.3,3129.2,2.80129781]
[1642668937403,0.00025329,3129.3,3129.2,5.23919378]
[1642668937602,0.00025329,3129.3,3129.2,3.60779781]
[1642668938203,0.00025329,3129.3,3129.2,0.8065]
[1642668938603,0.00025329,3129.3,3129.2,3.61638458]
[1642668938803,0.00025329,3129.3,3129.2,3.62695143]
[1642668940044,0.00025329,3129.3,3129.2,6.0648474]
[1642668940244,0.00025329,3129.3,3129.2,3.62695143]
[1642668940445,0.00025329,3129.3,3129.2,6.0648474]
[1642668940649,0.00025329,3129.3,3129.2,3.62695143]
[1642668941045,0.00025329,3129.3,3129.2,3.92695143]
[1642668941247,0.00025329,3129.3,3129.2,6.6816474]
[1642668941445,0.1278,3129.7,3129.3,3.65054671]
[1642668941645,3.9502,3129.8,3129.5,0.79906]
[1642668941845,0.00170527,3129.6,3129.5,0.79906]
[1642668944607,0.00170527,3129.6,3129.5,3.52042136]
[1642668947943,0.00170527,3129.6,3129.5,3.82042136]
[1642668948947,0.00170527,3129.6,3129.5,3.52042136]
[1642668949849,0.00170527,3129.6,3129.5,3.82042136]
[1642668950248,0.00170527,3129.6,3129.5,3.52042136]
[1642668950650,0.00170527,3129.6,3129.5,2.72136136]
[1642668950899,0.00170527,3129.6,3129.4,4.33518615]
[1642668951100,0.00170527,3129.6,3129.5,2.72136136]
[1642668951301,0.00113685,3129.5,3129.4,1.61382479]
[1642668953203,0.00113685,3129.5,3129.3,2.4205051]
[1642668953405,0.00113685,3129.5,3129.4,1.61462518]
[1642668953605,0.00113685,3129.5,3129.3,2.81267019]
[1642668953805,0.00113685,3129.5,3129.3,0.00054671]
[1642668954005,0.00113685,3129.5,3129.3,2.4205051]
[1642668954206,0.00113685,3129.5,3129.3,0.00054671]
[1642668954409,0.00113685,3129.5,3129.3,2.4205051]
[1642668955048,0.00113685,3129.5,3129.4,1.61549833]
[1642668955846,0.00113685,3129.5,3129.3,0.00054671]
[1642668956448,0.00113685,3129.5,3129.3,1.61563019]
[1642668956849,0.00113685,3129.5,3129.4,1.61508348]
[1642668959496,0.00113685,3129.5,3129.4,1.6465351]
[1642668962954,0.00113685,3129.5,3129.4,1.64597975]
[1642668963551,0.00113685,3129.5,3129.4,0.0304181]
[1642668963752,0.00113685,3129.5,3129.4,1.6460187]
[1642668963953,0.00113685,3129.5,3129.4,0.0304181]
[1642668964354,0.00113685,3129.5,3129.4,1.6460187]
[1642668964554,0.09889852,3129.5,3129.4,1.6156006]
[1642668965556,0.09889852,3129.5,3129.3,1.61614731]
[1642668965754,0.09889852,3129.5,3129.3,0.00054671]
[1642668966194,0.1278,3129.4,3129.3,0.00054671]
[1642668966393,3.17914913,3129.4,3129.1,2.72174367]
[1642668966594,3.18060111,3129.4,3129.2,2.72174367]
[1642668966793,3.18060111,3129.4,3128.7,3.7054]
[1642668966794,0.00088356,3129.3,3128.7,3.7054]
[1642668967196,0.00088356,3129.3,3128.8,0.00195856]
[1642668968993,0.30088356,3129.3,3128.8,0.00195856]
[1642668969847,0.00088356,3129.3,3128.8,0.00195856]
[1642668973148,0.00088356,3129.3,3129.2,1.4702411]
[1642668978353,0.00088356,3129.3,3129.2,3.89457677]
[1642668978954,0.00088356,3129.3,3129.2,1.4702411]
[1642668979560,0.00088356,3129.3,3129.2,1.50037887]
[1642668980459,0.00088356,3129.3,3129.2,3.92471454]
[1642668981897,0.00088356,3129.3,3129.2,6.64618222]
[1642668983097,0.00088356,3129.3,3129.2,5.17594112]
[1642668983296,0.00088356,3129.3,3129.2,2.75160545]
[1642668983497,0.00088356,3129.3,3129.2,4.36952247]
[1642668983898,0.00088356,3129.3,3129.2,2.75160545]
[1642668987264,0.00088356,3129.3,3129.2,4.36952247]
[1642668987464,0.00088356,3129.3,3129.2,2.75160545]
[1642668987665,0.00088356,3129.3,3129.2,4.36952247]
[1642668988796,0.00088356,3129.3,3129.2,2.75160545]
[1642668989701,0.09880062,3129.3,3129.2,2.72146768]
[1642668989902,0.09880062,3129.3,3129.1,2.42433567]
[1642668990202,0.09880062,3129.3,3129.2,2.8273189]
[1642668990402,0.09880062,3129.3,3129.1,2.42433567]
[1642668990602,0.09880062,3129.3,3129.1,3.96840339]
[1642668990801,0.09880062,3129.3,3129.2,2.72146768]
[1642668991204,0.09880062,3129.3,3129.1,9.52605989]
[1642668991404,0.09880062,3129.3,3129.2,2.72146768]
[1642668992451,0.09880062,3129.3,3129.0,2.42433567]
[1642668992854,0.09880062,3129.3,3129.1,1.31897857]
[1642668993058,0.09880062,3129.3,3129.2,2.72146768]
[1642668993354,0.09880062,3129.3,3129.1,3.74331424]
[1642668993955,0.09880062,3129.3,3129.1,1.31897857]
[1642668994258,0.09880062,3129.3,3129.1,3.74331424]
[1642668994456,0.09880062,3129.3,3129.2,2.42433567]
[1642668994657,0.09880062,3129.3,3129.1,3.74331424]
[1642668995057,0.09880062,3129.3,3129.1,1.31897857]
[1642668995657,0.09880062,3129.3,3129.1,3.74331424]
[1642668996702,0.09791706,3129.3,3129.1,3.74331424]
[1642668997504,0.09791706,3129.3,3129.0,2.42433567]
[1642668997807,0.09791706,3129.3,3129.2,1.6175361]
[1642668998303,0.09791706,3129.3,3129.0,2.42433567]
[1642668998504,0.09791706,3129.3,3129.2,1.61744628]
[1642668999007,0.09791706,3129.3,3129.0,2.42433567]
[1642668999410,0.09791706,3129.3,3129.1,2.42433567]
[1642668999649,0.09791706,3129.3,3129.2,2.42433567]
[1642668999853,0.09791706,3129.3,3129.1,2.42433567]
[1642669000254,0.09791706,3129.3,3129.2,2.42433567]
[1642669001758,0.09791706,3129.3,3129.1,2.42433567]
[1642669001959,0.09791706,3129.3,3129.2,2.42433567]
[1642669003998,0.09791706,3129.3,3129.1,2.42433567]
[1642669004402,0.09791706,3129.3,3129.1,1.61812918]
[1642669005503,0.09791706,3129.3,3129.0,1.61812918]
[1642669005704,0.09791706,3129.3,3129.1,1.61812918]
[1642669007147,0.09791706,3129.3,3129.2,1.61812918]
[1642669008448,0.09791706,3129.3,3129.1,1.61812918]
[1642669009651,0.1278,3129.2,3129.1,1.61812918]
[1642669009851,0.09791706,3129.3,3129.1,1.61812918]
[1642669010906,0.09791706,3129.3,3129.2,1.61812918]
[1642669011298,0.09791706,3129.3,3129.1,1.61812918]
[1642669011496,0.09791706,3129.3,3129.2,1.61812918]
[1642669011898,0.08884663,3129.3,3129.2,1.61812918]
[1642669014646,0.1278,3129.7,3129.2,1.61812918]
[1642669014853,0.1278,3129.7,3129.2,1.61714095]
[1642669015050,0.00258883,3129.6,3129.2,1.61714095]
[1642669015450,0.00202041,3129.5,3129.2,1.61714095]
[1642669015652,0.00202041,3129.5,3129.0,2.72166485]
[1642669015850,0.00145198,3129.4,3129.1,2.72166485]
[1642669016051,0.00145198,3129.4,3129.2,2.72166485]
[1642669016252,0.00088356,3129.3,3128.9,2.42433567]
[1642669016552,0.00202041,3129.5,3129.0,0.00082171]
[1642669016953,0.00145198,3129.4,3129.0,0.00082171]
[1642669017355,0.3,3129.6,3129.0,0.00082171]
[1642669017356,0.00088356,3129.3,3129.0,0.00082171]
[1642669017752,0.42992241,3129.5,3129.0,0.00082171]
[1642669017952,0.12905919,3129.5,3129.0,0.00082171]
[1642669018154,0.00145198,3129.4,3129.0,0.00082171]
[1642669018596,0.00088356,3129.3,3129.0,0.00082171]
[1642669018997,0.00315725,3129.7,3129.0,0.00082171]
[1642669019702,0.80241725,3129.7,3129.0,0.00082171]
[1642669019904,2.67001056,3129.6,3129.0,0.00082171]
[1642669020302,0.00202041,3129.5,3129.0,0.00082171]
[1642669020502,0.12982041,3129.5,3129.0,0.00082171]
[1642669020703,0.00145198,3129.4,3129.0,2.42433567]
[1642669021105,0.00088356,3129.3,3129.1,6.67978714]
[1642669021304,0.127899,3129.6,3129.3,3.00176711]
[1642669021506,1.1609,3129.9,3129.3,3.00176711]
[1642669021706,0.00113685,3129.5,3129.3,3.00176711]
[1642669022005,0.00113685,3129.5,3129.4,1.41576916]
[1642669022449,0.00113685,3129.5,3129.4,2.51689902]
[1642669023249,0.11986905,3130.2,3129.4,2.51689902]
[1642669023648,0.00341054,3130.1,3129.4,2.51689902]
[1642669023847,0.1278,3130.0,3129.4,2.51689902]
[1642669024051,0.13064211,3130.0,3129.5,1.61553481]
[1642669024248,0.13064211,3130.0,3129.4,2.51689902]
[1642669024249,0.00227369,3129.9,3129.4,4.13243383]
[1642669024450,0.00227369,3129.9,3129.4,4.08243383]
[1642669024649,0.00170527,3129.8,3129.5,1.61553481]
[1642669025056,0.00113684,3129.7,3129.4,4.08243383]
[1642669025454,0.00284211,3130.0,3129.4,4.08243383]
[1642669025655,0.1278,3129.9,3129.4,4.08243383]
[1642669025903,0.13007369,3129.9,3129.4,4.08243383]
[1642669026097,0.00170527,3129.8,3129.4,4.08243383]
[1642669026498,0.1278,3130.0,3129.4,4.08243383]
[1642669026499,0.00113684,3129.7,3129.4,4.08243383]
[1642669026898,0.00227369,3129.9,3129.4,4.08243383]
[1642669027297,0.00170527,3129.8,3129.4,4.08243383]
[1642669027702,0.00113684,3129.7,3129.4,4.08243383]
[1642669028099,0.00284211,3130.0,3129.4,4.08243383]
[1642669028500,0.00227369,3129.9,3129.4,4.08243383]
[1642669028999,0.00170527,3129.8,3129.4,4.08243383]
[1642669029399,0.00113684,3129.7,3129.4,4.08243383]
[1642669029649,0.00113684,3129.7,3129.6,0.01612276]
[1642669029855,1.30284211,3130.0,3129.6,0.01612276]
[1642669030054,0.00113684,3129.7,3129.6,0.01612276]
[1642669030256,0.00227369,3129.9,3129.6,0.01612276]
[1642669030456,0.00113684,3129.7,3129.6,0.01612276]
[1642669030653,1.3,3130.0,3129.6,0.01612276]
[1642669030654,0.00170527,3129.8,3129.6,0.01612276]
[1642669030857,0.00113684,3129.7,3129.6,0.01612276]
[1642669031254,0.00113684,3129.7,3129.6,2.73748937]
[1642669031755,0.00113684,3129.7,3129.6,5.69699805]
[1642669032354,0.00113684,3129.7,3129.6,7.31351626]
[1642669034601,0.00113684,3129.7,3129.6,7.2973935]
[1642669034805,0.00113684,3129.7,3129.6,4.33788482]
[1642669035004,0.00113684,3129.7,3129.6,1.61651821]
[1642669035204,0.00113684,3129.7,3129.6,7.12949933]
[1642669036606,0.00113684,3129.7,3129.6,2.72136661]
[1642669037007,0.00113684,3129.7,3129.5,4.33788482]
[1642669037249,0.00113684,3129.7,3129.6,2.72136661]
[1642669037450,0.00113684,3129.7,3129.5,4.33788482]
[1642669037849,0.00113684,3129.7,3129.6,2.72136661]
[1642669038050,0.00113684,3129.7,3129.5,1.61651821]
[1642669038051,0.00113684,3129.7,3129.5,4.33788482]
[1642669038252,0.00113684,3129.7,3129.6,4.33788482]
[1642669038651,0.00113684,3129.7,3129.6,1.61651821]
[1642669038854,0.00113684,3129.7,3129.6,4.33788482]
[1642669039256,0.00113684,3129.7,3129.6,2.72136661]
[1642669039457,0.00113684,3129.7,3129.5,4.33788482]
[1642669039656,0.00113684,3129.7,3129.6,4.33788482]
[1642669039856,0.00113684,3129.7,3129.6,2.72136661]
[1642669040056,0.00113684,3129.7,3129.5,4.33788482]
[1642669040259,0.60113684,3130.0,3129.5,4.33788482]
[1642669040457,0.1278,3130.2,3129.9,2.29051953]
[1642669040659,0.1278,3130.2,3130.0,2.72136661]
[1642669041904,4.2075,3130.3,3130.0,3.71156661]
[1642669041905,0.5,3130.3,3130.0,3.71156661]
[1642669042106,0.5,3130.3,3130.1,2.72136661]
[1642669042304,0.00284212,3130.2,3130.1,2.72136661]
[1642669044107,0.00284212,3130.2,3130.1,5.72651055]
[1642669044506,0.00284212,3130.2,3130.1,2.72136661]
[1642669044953,0.00284212,3130.2,3130.0,2.72136661]
[1642669045154,0.00284212,3130.2,3130.1,2.72136661]
[1642669045356,0.0022737,3130.1,3129.9,1.17376571]
[1642669045755,0.00170527,3130.0,3129.9,1.17376571]
[1642669046158,0.00170527,3130.0,3129.9,3.95083069]
[1642669046355,0.00170527,3130.0,3129.9,1.17376571]
[1642669048054,0.00170527,3130.0,3129.9,2.55589539]
[1642669048505,0.00170527,3130.0,3129.9,7.0644002]
[1642669048709,0.00170527,3130.0,3129.9,2.55589539]
[1642669049203,0.00170527,3130.0,3129.9,5.32203032]
[1642669049605,0.49139803,3130.3,3129.9,5.32203032]
[1642669049810,0.49139803,3130.3,3129.9,4.1724136]
[1642669050010,0.00113685,3130.2,3129.9,2.55589539]
[1642669050611,0.00113685,3130.2,3129.9,5.39458164]
[1642669050810,0.00113685,3130.2,3129.9,7.01109985]
[1642669051710,0.00113685,3130.2,3129.9,5.39458164]
[1642669052354,0.00113685,3130.2,3129.9,2.55589539]
[1642669052754,0.00113685,3130.2,3129.9,1.17376571]
[1642669053961,0.12883685,3130.2,3129.9,1.17376571]
[1642669054359,0.12883685,3130.2,3129.9,3.95888082]
[1642669054560,0.12883685,3130.2,3130.0,1.19228428]
[1642669054760,0.00113685,3130.2,3130.0,1.19228428]
[1642669055561,0.00113685,3130.2,3130.1,2.75478111]
[1642669057601,0.48652657,3130.3,3130.0,1.19228428]
[1642669057802,0.48652657,3130.3,3130.0,3.99972663]
[1642669058002,0.48652657,3130.3,3130.1,1.61651821]
[1642669058201,0.48652657,3130.3,3130.2,2.8092505]
[1642669059501,0.48652657,3130.3,3130.1,1.61651821]
[1642669059960,0.48652657,3130.3,3130.2,2.75834026]
[1642669060161,0.48652657,3130.3,3130.2,2.96677884]
[1642669060361,0.48652657,3130.3,3130.2,5.68736416]
[1642669061965,0.48652657,3130.3,3130.2,2.72058532]
[1642669062564,0.48652657,3130.3,3130.1,4.33710353]
[1642669063168,0.48652657,3130.3,3130.2,2.72058532]
[1642669063409,0.48652657,3130.3,3130.1,2.72058532]
[1642669068154,0.48652657,3130.3,3130.0,1.19228428]
[1642669068155,0.48652657,3130.3,3130.2,2.72058532]
[1642669068353,0.48652657,3130.3,3130.1,2.72058532]
[1642669068552,0.48652657,3130.3,3130.2,2.72058532]
[1642669069154,0.48652657,3130.3,3130.1,2.72058532]
[1642669074863,0.48652657,3130.7,3130.1,2.72058532]
[1642669075261,0.48652657,3130.7,3130.1,4.33710353]
[1642669075262,0.48936869,3130.7,3130.1,4.33710353]
[1642669075460,0.48936869,3130.7,3130.2,2.72058532]
[1642669075664,0.48936869,3130.7,3130.6,1.24494197]
[1642669076064,0.48936869,3130.7,3130.6,3.96552729]
[1642669077365,0.48841216,3130.7,3130.6,3.96552729]
[1642669081413,0.48841216,3130.7,3130.6,5.27634563]
[1642669084464,0.48841216,3130.7,3130.6,3.96552729]
[1642669085767,0.48841216,3130.7,3130.6,5.48999593]
[1642669088815,0.48841216,3130.7,3130.6,3.96552729]
[1642669090460,0.46713629,3130.7,3130.6,3.96552729]
[1642669091362,0.46513629,3130.7,3130.6,3.96552729]
[1642669094813,0.76513629,3130.7,3130.6,3.96552729]
[1642669095616,0.46513629,3130.7,3130.6,3.96552729]
[1642669099159,0.46513629,3130.7,3130.6,6.82767049]
[1642669099558,0.46513629,3130.7,3130.6,6.8489012]
[1642669099763,0.46513629,3130.7,3130.6,8.46541941]
[1642669099961,0.46513629,3130.7,3130.6,3.986758]
[1642669100926,0.46513629,3130.7,3130.6,8.35406311]
[1642669101518,0.46513629,3130.7,3130.6,6.7375449]
[1642669101718,0.46513629,3130.7,3130.6,8.3521076]
[1642669101919,0.46513629,3130.7,3130.6,6.7375449]
[1642669102520,0.46513629,3130.7,3130.6,8.35251665]
[1642669102721,3.4172,3131.4,3130.6,8.35251665]
[1642669102722,3.4172,3131.4,3130.8,0.79868]
[1642669102924,3.4172,3131.4,3130.9,5.86388189]
[1642669103122,0.00341054,3131.3,3131.0,2.72058532]
[1642669103526,0.00284212,3131.2,3131.1,2.72058532]
[1642669103722,0.00284212,3131.2,3131.0,1.49209554]
[1642669103924,0.00284212,3131.2,3131.1,2.72058532]
[1642669104125,3.4172,3131.4,3131.2,1.17337577]
[1642669104324,5.2089,3131.6,3131.3,2.58979269]
[1642669104325,1.2219,3131.6,3131.3,2.58979269]
[1642669104524,0.02432609,3131.7,3131.3,2.58979269]
[1642669104961,0.00511581,3131.6,3131.3,2.58979269]
[1642669105163,0.13281581,3131.6,3131.3,2.58979269]
[1642669105362,0.00454739,3131.5,3131.3,2.58979269]
[1642669105763,0.00397896,3131.4,3131.3,2.58979269]
[1642669107063,0.00397896,3131.4,3131.3,1.69957594]
[1642669110014,0.00397896,3131.4,3131.3,1.69873098]
[1642669113365,0.02432609,3131.7,3131.4,4.4]
[1642669113666,0.02432609,3131.7,3131.4,4.41257968]
[1642669113667,0.00113685,3131.6,3131.4,4.41257968]
[1642669113866,0.00113685,3131.6,3131.5,3.97406279]
[1642669114366,0.00113685,3131.6,3131.5,1.32406279]
[1642669114767,0.00113685,3131.6,3131.5,3.47406279]
[1642669115367,0.00113685,3131.6,3131.5,6.63385493]
[1642669115568,0.09903441,3132.4,3131.7,4.95]
[1642669115769,0.09903441,3132.4,3131.9,0.79836]
[1642669116009,0.09903441,3132.5,3132.3,0.29427334]
[1642669116410,0.09903441,3132.5,3132.4,1.4940186]
[1642669116612,0.09903441,3132.5,3132.4,5.27481074]
[1642669116809,0.10415022,3132.5,3132.4,2.2748186]
[1642669117109,0.10415022,3132.5,3132.4,1.2748186]
[1642669117714,0.10415022,3132.5,3132.4,3.5248186]
[1642669118813,0.10415022,3132.5,3132.4,3.6846186]
[1642669119316,0.10415022,3132.5,3132.4,3.5248186]
[1642669119513,0.10415022,3132.5,3132.4,3.6846186]
[1642669120363,0.10415022,3132.5,3132.4,2.76350517]
[1642669120563,0.10415022,3132.5,3132.4,4.10212889]
[1642669121164,0.10415022,3132.5,3132.4,5.97349607]
[1642669121366,0.10415022,3132.5,3132.4,4.10212889]
[1642669124010,0.10415022,3132.5,3132.4,4.22962889]
[1642669125015,0.10415022,3132.5,3132.4,4.10212889]
[1642669125416,0.10415022,3132.5,3132.4,6.01030993]
[1642669125815,0.10415022,3132.5,3132.4,4.10212889]
[1642669126016,0.2275,3132.9,3132.7,4.95]
[1642669126220,0.1275,3133.3,3132.8,6.22509449]
[1642669126417,8.2639,3133.7,3132.8,6.22509449]
[1642669126418,0.01230634,3133.0,3132.8,6.22509449]
[1642669126617,0.01230634,3133.0,3132.9,4.45686797]
[1642669126816,0.13375266,3133.6,3132.9,4.45686797]
[1642669127017,0.13375266,3133.6,3133.4,1.48294752]
[1642669127263,0.00568423,3133.5,3133.4,3.6806212]
[1642669127464,0.13318423,3133.5,3133.4,2.19767368]
[1642669127660,0.13318423,3133.5,3133.4,3.75534788]
[1642669128765,0.00568423,3133.5,3133.4,3.75534788]
[1642669128965,0.00568423,3133.5,3133.4,2.19767368]
[1642669129567,0.00568423,3133.5,3133.4,2.22840264]
[1642669130266,0.00568423,3133.5,3133.4,1.04458377]
[1642669132509,0.00568423,3133.5,3133.4,0.03072896]
[1642669133512,0.13318423,3133.5,3133.4,0.03072896]
[1642669134314,3.08750495,3133.5,3133.4,0.03072896]
[1642669134763,3.08750495,3133.5,3132.9,1.30992611]
[1642669134965,0.1275,3133.4,3132.9,1.30992611]
[1642669135162,0.13261581,3133.4,3132.9,1.30992611]
[1642669135362,0.00454739,3133.3,3132.9,1.30992611]
[1642669135566,0.1275,3133.2,3132.9,1.30992611]
[1642669135763,0.13147896,3133.2,3132.9,1.30992611]
[1642669135964,0.00341054,3133.1,3132.9,1.30992611]
[1642669136365,0.00284212,3133.0,3132.9,1.30992611]
[1642669139016,0.00284212,3133.0,3132.9,1.15992611]
[1642669139522,0.00284212,3133.0,3132.9,1.19085441]
[1642669142360,0.00284212,3133.0,3132.9,2.74357822]
[1642669144368,0.1275,3133.4,3133.0,0.00568424]
[1642669144769,0.00170527,3133.3,3133.0,0.00568424]
[1642669145168,0.00113684,3133.2,3133.0,0.00568424]
[1642669148026,4.0275,3133.1,3133.0,0.00568424]
[1642669148220,7.75363259,3133.1,3133.0,0.00568424]
[1642669149764,7.8468094,3133.1,3133.0,0.00568424]
[1642669151768,7.8468094,3133.1,3133.0,2.72442477]
[1642669152169,3.9468094,3133.1,3133.0,2.72442477]
[1642669153424,3.9468094,3133.1,3133.0,2.32284985]
[1642669153718,0.79752418,3132.9,3132.4,1.13314122]
[1642669154118,1.09752418,3132.9,3132.5,0.00284212]
[1642669154724,2.59691957,3132.8,3132.5,0.00284212]
[1642669154921,1.09752418,3132.9,3132.5,0.00284212]
[1642669155924,1.39752418,3132.9,3132.5,0.00284212]
[1642669156326,0.22067681,3133.1,3132.5,0.00284212]
[1642669157361,1.22067681,3133.1,3132.5,0.00284212]
[1642669157560,0.79841,3132.9,3132.5,0.00284212]
[1642669157761,2.78975435,3132.8,3132.5,0.00284212]
[1642669157965,3.08975435,3132.8,3132.5,0.00284212]
[1642669158168,3.69055435,3132.8,3132.2,0.00454739]
[1642669158767,3.69055435,3132.8,3132.1,0.00511581]
[1642669159570,3.69055435,3132.8,3132.1,1.61890163]
[1642669159768,0.09311576,3132.7,3132.1,0.00511581]
[1642669159969,0.09311576,3132.7,3132.2,0.00454739]
[1642669160169,0.09311576,3132.7,3132.1,0.00511581]
[1642669160770,0.09311576,3132.7,3132.1,1.61890163]
[1642669161214,0.09311576,3132.7,3132.2,0.00454739]
[1642669163415,0.22090976,3132.7,3132.1,1.61890163]
[1642669163619,0.09311576,3132.7,3132.3,1.61378582]
[1642669163814,0.09311576,3132.7,3132.2,1.61833321]
[1642669164014,0.09311576,3132.7,3132.4,0.00341054]
[1642669164214,0.09311576,3132.7,3132.3,0.00397897]
[1642669164870,0.39311576,3132.7,3132.3,0.00397897]
[1642669165070,0.39311576,3132.7,3132.2,0.00454739]
[1642669165670,0.09311576,3132.7,3132.2,0.00454739]
[1642669167270,0.22090876,3132.7,3132.2,0.00454739]
[1642669167672,0.09311576,3132.7,3132.2,0.00454739]
[1642669168515,0.09311576,3132.7,3132.2,1.61833321]
[1642669168921,0.09311576,3132.7,3132.3,0.00397897]
[1642669170523,0.22090576,3132.7,3132.3,0.00397897]
[1642669170721,1.34840576,3132.7,3132.3,0.00397897]
[1642669170922,1.34840576,3132.7,3131.3,0.6847]
[1642669170923,4.04140367,3132.6,3132.2,0.00454739]
[1642669171122,1.1275,3132.5,3132.2,0.00454739]
[1642669171322,3.87263083,3132.4,3132.0,0.00568424]
[1642669171525,0.1277,3132.3,3131.8,0.00682108]
[1642669171724,0.466,3132.2,3131.7,0.00738951]
[1642669172020,3.34742858,3132.1,3131.7,0.00738951]
[1642669172264,3.81342858,3132.1,3131.7,0.00738951]
[1642669172464,3.81342858,3132.1,3131.5,1.61378582]
[1642669172465,3.81342858,3132.1,3131.6,0.00795793]
[1642669173066,1.5973996,3132.0,3131.6,0.00795793]
[1642669173268,2.97112018,3131.9,3131.7,2.71939608]
[1642669173467,3.27112018,3131.9,3131.7,2.71939608]
[1642669173666,3.20364229,3131.8,3131.7,2.71939608]
[1642669173867,3.20364229,3131.8,3131.4,1.61378582]
[1642669174069,3.50364229,3131.8,3131.7,0.00738951]
[1642669174467,0.3,3131.8,3131.7,0.00646218]
[1642669174669,0.39312818,3131.8,3131.5,4.34078092]
[1642669174871,0.09312818,3131.8,3131.6,0.0070306]
[1642669175271,2.70714805,3131.8,3131.6,0.0070306]
[1642669175672,3.00714805,3131.8,3131.7,2.71934823]
[1642669175919,0.39312818,3131.8,3131.7,2.71934823]
[1642669176112,0.09312818,3131.8,3131.7,2.72581041]
[1642669176513,2.68003227,3131.8,3131.7,2.72581041]
[1642669176715,0.39312818,3131.8,3131.7,2.72581041]
[1642669176915,0.09312818,3131.8,3131.7,2.72581041]
[1642669177417,2.72257181,3131.8,3131.7,2.72581041]
[1642669177613,3.02257181,3131.8,3131.7,2.72581041]
[1642669177814,4.02257181,3131.8,3131.7,2.72581041]